[Event "Titled Tuesday Blitz March 01 Early 2022"]
[White "Bashirli, Saadat"]
[Black "Escudero Donoso, Felipe"]
[WhiteFideId "13429990"]
[BlackFideId "3410595"]
[WhiteElo "1173"]
[BlackElo "2184"]
[Result "1-0"]
[Round "11"]
[TimeControl "180+1"]
[Date "2022.03.01"]
[WhiteClock "0:00:35"]
[BlackClock "0:00:06"]

1. d4 {[%clk 0:03:00]}  Nf6 {[%clk 0:02:59]} 2. Bg5 {[%clk 0:03:00]}  d5 {[%clk 0:02:58]} 3. Nd2 {[%clk 0:02:57]}  e6 {[%clk 0:02:52]} 4. e4 {[%clk 0:02:54]}  h6 {[%clk 0:02:41]} 5. Bxf6 {[%clk 0:02:53]}  Qxf6 {[%clk 0:02:42]} 6. e5 {[%clk 0:02:52]}  Qd8 {[%clk 0:02:41]} 7. Ngf3 {[%clk 0:02:52]}  Be7 {[%clk 0:02:41]} 8. Bd3 {[%clk 0:02:51]}  c5 {[%clk 0:02:41]} 9. c3 {[%clk 0:02:50]}  b6 {[%clk 0:02:33]} 10. O-O {[%clk 0:02:46]}  O-O {[%clk 0:02:28]} 11. Bb1 {[%clk 0:02:44]}  Ba6 {[%clk 0:02:17]} 12. Re1 {[%clk 0:02:40]}  Nc6 {[%clk 0:02:14]} 13. Qc2 {[%clk 0:02:35]}  g6 {[%clk 0:02:14]} 14. Nf1 {[%clk 0:02:29]}  Rc8 {[%clk 0:02:10]} 15. Qd2 {[%clk 0:02:25]}  Bxf1 {[%clk 0:01:32]} 16. Rxf1 {[%clk 0:02:22]}  Kg7 {[%clk 0:01:28]} 17. a3 {[%clk 0:02:15]}  cxd4 {[%clk 0:01:27]} 18. cxd4 {[%clk 0:02:15]}  Na5 {[%clk 0:01:27]} 19. Ba2 {[%clk 0:02:13]}  Qd7 {[%clk 0:01:23]} 20. b4 {[%clk 0:02:11]}  Nc4 {[%clk 0:01:20]} 21. Bxc4 {[%clk 0:02:10]}  Rxc4 {[%clk 0:01:20]} 22. Rac1 {[%clk 0:02:10]}  Rfc8 {[%clk 0:01:20]} 23. h3 {[%clk 0:02:06]}  Qc7 {[%clk 0:01:15]} 24. Rxc4 {[%clk 0:02:04]}  Qxc4 {[%clk 0:01:16]} 25. Qe3 {[%clk 0:01:55]}  Qc3 {[%clk 0:01:10]} 26. Re1 {[%clk 0:01:43]}  Qxe3 {[%clk 0:01:01]} 27. Rxe3 {[%clk 0:01:44]}  Rc1+ {[%clk 0:00:59]} 28. Kh2 {[%clk 0:01:43]}  a5 {[%clk 0:00:55]} 29. Rb3 {[%clk 0:01:41]}  axb4 {[%clk 0:00:52]} 30. axb4 {[%clk 0:01:42]}  Rc4 {[%clk 0:00:52]} 31. b5 {[%clk 0:01:41]}  Bb4 {[%clk 0:00:47]} 32. g3 {[%clk 0:01:36]}  Bc3 {[%clk 0:00:47]} 33. Ra3 {[%clk 0:01:30]}  Bxd4 {[%clk 0:00:46]} 34. Nxd4 {[%clk 0:01:29]}  Rxd4 {[%clk 0:00:47]} 35. Ra6 {[%clk 0:01:29]}  Rb4 {[%clk 0:00:37]} 36. Rxb6 {[%clk 0:01:28]}  g5 {[%clk 0:00:35]} 37. Kg2 {[%clk 0:01:27]}  Kg6 {[%clk 0:00:36]} 38. Rb8 {[%clk 0:01:26]}  Kf5 {[%clk 0:00:35]} 39. b6 {[%clk 0:01:25]}  Kxe5 {[%clk 0:00:35]} 40. b7 {[%clk 0:01:25]}  d4 {[%clk 0:00:33]} 41. h4 {[%clk 0:01:18]}  Rb2 {[%clk 0:00:22]} 42. hxg5 {[%clk 0:01:10]}  hxg5 {[%clk 0:00:23]} 43. Kf3 {[%clk 0:01:07]}  d3 {[%clk 0:00:23]} 44. Rd8 {[%clk 0:01:06]}  Rxb7 {[%clk 0:00:23]} 45. Rxd3 {[%clk 0:01:06]}  f5 {[%clk 0:00:22]} 46. Kg2 {[%clk 0:01:06]}  Rb2 {[%clk 0:00:21]} 47. Re3+ {[%clk 0:01:05]}  Kf6 {[%clk 0:00:21]} 48. Rc3 {[%clk 0:01:05]}  f4 {[%clk 0:00:20]} 49. gxf4 {[%clk 0:01:05]}  gxf4 {[%clk 0:00:21]} 50. Kf3 {[%clk 0:01:05]}  Kf5 {[%clk 0:00:20]} 51. Rc5+ {[%clk 0:01:03]}  e5 {[%clk 0:00:21]} 52. Kg2 {[%clk 0:01:03]}  Ra2 {[%clk 0:00:17]} 53. Rc8 {[%clk 0:01:04]}  Ke4 {[%clk 0:00:16]} 54. Rc4+ {[%clk 0:01:03]}  Kd5 {[%clk 0:00:14]} 55. Rc8 {[%clk 0:01:03]}  Ra6 {[%clk 0:00:13]} 56. Rd8+ {[%clk 0:01:03]}  Rd6 {[%clk 0:00:13]} 57. Ra8 {[%clk 0:01:04]}  Rg6+ {[%clk 0:00:13]} 58. Kf1 {[%clk 0:01:03]}  Ke4 {[%clk 0:00:13]} 59. Ra4+ {[%clk 0:01:01]}  Kf3 {[%clk 0:00:13]} 60. Ra3+ {[%clk 0:01:01]}  Kg4 {[%clk 0:00:14]} 61. Ke2 {[%clk 0:01:01]}  e4 {[%clk 0:00:13]} 62. Ra4 {[%clk 0:00:59]}  f3+ {[%clk 0:00:12]} 63. Ke3 {[%clk 0:00:58]}  Rb6 {[%clk 0:00:10]} 64. Rxe4+ {[%clk 0:00:58]}  Kg5 {[%clk 0:00:10]} 65. Kxf3 {[%clk 0:00:58]}  Rf6+ {[%clk 0:00:11]} 66. Kg2 {[%clk 0:00:59]}  Rb6 {[%clk 0:00:11]} 67. f3 {[%clk 0:00:58]}  Ra6 {[%clk 0:00:12]} 68. Kg3 {[%clk 0:00:59]}  Ra3 {[%clk 0:00:12]} 69. Re5+ {[%clk 0:00:59]}  Kf6 {[%clk 0:00:12]} 70. Rb5 {[%clk 0:00:58]}  Rc3 {[%clk 0:00:12]} 71. Kg4 {[%clk 0:00:57]}  Rc1 {[%clk 0:00:11]} 72. Rb6+ {[%clk 0:00:55]}  Kg7 {[%clk 0:00:11]} 73. f4 {[%clk 0:00:53]}  Rg1+ {[%clk 0:00:08]} 74. Kf5 {[%clk 0:00:53]}  Rf1 {[%clk 0:00:08]} 75. Rb7+ {[%clk 0:00:52]}  Kf8 {[%clk 0:00:08]} 76. Ke5 {[%clk 0:00:50]}  Ra1 {[%clk 0:00:03]} 77. Kf6 {[%clk 0:00:42]}  Ra2 {[%clk 0:00:03]} 78. f5 {[%clk 0:00:42]}  Ra6+ {[%clk 0:00:02]} 79. Kg5 {[%clk 0:00:41]}  Ra1 {[%clk 0:00:02]} 80. Kf6 {[%clk 0:00:41]}  Ra6+ {[%clk 0:00:02]} 81. Ke5 {[%clk 0:00:40]}  Ra1 {[%clk 0:00:03]} 82. Rd7 {[%clk 0:00:37]}  Re1+ {[%clk 0:00:02]} 83. Kf6 {[%clk 0:00:37]}  Ke8 {[%clk 0:00:02]} 84. Ra7 {[%clk 0:00:36]}  Ra1 {[%clk 0:00:01]} 85. Rxa1 {[%clk 0:00:35]}  Kd7 {[%clk 0:00:01]} 86. Ra8 {[%clk 0:00:35]}  Kc6 {[%clk 0:00:01]} 87. Kf7 {[%clk 0:00:36]}  Kb5 {[%clk 0:00:02]} 88. f6 {[%clk 0:00:37]}  Kb4 {[%clk 0:00:02]} 89. Kg7 {[%clk 0:00:37]}  Kb3 {[%clk 0:00:03]} 90. f7 {[%clk 0:00:38]}  Kb4 {[%clk 0:00:04]} 91. f8=Q+ {[%clk 0:00:38]}  Kb3 {[%clk 0:00:05]} 92. Rb8+ {[%clk 0:00:37]}  Ka2 {[%clk 0:00:05]} 93. Qf7+ {[%clk 0:00:35]}  Ka1 {[%clk 0:00:06]} 94. Qa7# {[%clk 0:00:35]} 1-0


[Site "https://www.chess.com"]

[Event "Titled Tuesday Blitz March 01 Early 2022"]
[White "Bodnaruk, Anastasia"]
[Black "Mirzoev, Azer"]
[WhiteFideId "4181751"]
[BlackFideId "13400304"]
[WhiteElo "2393"]
[BlackElo "2525"]
[Result "0-1"]
[Round "11"]
[TimeControl "180+1"]
[Date "2022.03.01"]
[WhiteClock "0:00:01"]
[BlackClock "0:00:04"]

1. e4 {[%clk 0:03:00]}  e6 {[%clk 0:03:00]} 2. d4 {[%clk 0:03:00]}  d5 {[%clk 0:03:01]} 3. Nc3 {[%clk 0:02:58]}  dxe4 {[%clk 0:03:01]} 4. Nxe4 {[%clk 0:02:58]}  Bd7 {[%clk 0:03:02]} 5. Nf3 {[%clk 0:02:50]}  Bc6 {[%clk 0:03:02]} 6. Bd3 {[%clk 0:02:50]}  Nd7 {[%clk 0:03:02]} 7. O-O {[%clk 0:02:49]}  Ngf6 {[%clk 0:03:02]} 8. Ng3 {[%clk 0:02:48]}  Be7 {[%clk 0:03:02]} 9. c4 {[%clk 0:02:48]}  O-O {[%clk 0:02:59]} 10. Bf4 {[%clk 0:02:41]}  b6 {[%clk 0:02:56]} 11. Qe2 {[%clk 0:02:39]}  Bb7 {[%clk 0:02:55]} 12. Rad1 {[%clk 0:02:37]}  Re8 {[%clk 0:02:54]} 13. Ne5 {[%clk 0:02:30]}  Qc8 {[%clk 0:02:46]} 14. Nh5 {[%clk 0:02:22]}  Nf8 {[%clk 0:02:43]} 15. Bg3 {[%clk 0:02:10]}  c5 {[%clk 0:02:36]} 16. dxc5 {[%clk 0:01:56]}  Qxc5 {[%clk 0:02:34]} 17. Nxf6+ {[%clk 0:01:37]}  Bxf6 {[%clk 0:02:34]} 18. Ng4 {[%clk 0:01:38]}  Be7 {[%clk 0:02:24]} 19. Ne3 {[%clk 0:01:35]}  Rad8 {[%clk 0:02:14]} 20. f4 {[%clk 0:01:34]}  Bf6 {[%clk 0:02:11]} 21. Kh1 {[%clk 0:01:34]}  g6 {[%clk 0:02:10]} 22. Ng4 {[%clk 0:01:32]}  Be7 {[%clk 0:01:59]} 23. Bf2 {[%clk 0:01:04]}  Qc6 {[%clk 0:01:46]} 24. Be3 {[%clk 0:00:59]}  h5 {[%clk 0:01:37]} 25. Ne5 {[%clk 0:00:57]}  Qc7 {[%clk 0:01:37]} 26. Bd2 {[%clk 0:00:47]}  Bf6 {[%clk 0:01:34]} 27. Bc3 {[%clk 0:00:47]}  Bg7 {[%clk 0:01:34]} 28. Be4 {[%clk 0:00:40]}  Bxe4 {[%clk 0:01:32]} 29. Qxe4 {[%clk 0:00:40]}  Rxd1 {[%clk 0:01:27]} 30. Rxd1 {[%clk 0:00:39]}  Rd8 {[%clk 0:01:27]} 31. Re1 {[%clk 0:00:38]}  Nh7 {[%clk 0:00:46]} 32. Qe2 {[%clk 0:00:28]}  Nf6 {[%clk 0:00:35]} 33. h3 {[%clk 0:00:19]}  Qb7 {[%clk 0:00:34]} 34. Kh2 {[%clk 0:00:19]}  a6 {[%clk 0:00:23]} 35. g4 {[%clk 0:00:19]}  hxg4 {[%clk 0:00:23]} 36. hxg4 {[%clk 0:00:19]}  b5 {[%clk 0:00:23]} 37. c5 {[%clk 0:00:11]}  b4 {[%clk 0:00:20]} 38. c6 {[%clk 0:00:08]}  Qc7 {[%clk 0:00:18]} 39. Bxb4 {[%clk 0:00:08]}  Nd5 {[%clk 0:00:18]} 40. Bd2 {[%clk 0:00:08]}  g5 {[%clk 0:00:08]} 41. fxg5 {[%clk 0:00:06]}  Ne7 {[%clk 0:00:09]} 42. Kg2 {[%clk 0:00:06]}  Nxc6 {[%clk 0:00:09]} 43. Nxc6 {[%clk 0:00:06]}  Qxc6+ {[%clk 0:00:09]} 44. Kh3 {[%clk 0:00:05]}  Qc2 {[%clk 0:00:08]} 45. Bc3 {[%clk 0:00:04]}  Qxe2 {[%clk 0:00:08]} 46. Rxe2 {[%clk 0:00:04]}  Bxc3 {[%clk 0:00:09]} 47. bxc3 {[%clk 0:00:05]}  Rd3+ {[%clk 0:00:09]} 48. Kh4 {[%clk 0:00:05]}  Rxc3 {[%clk 0:00:10]} 49. Rb2 {[%clk 0:00:05]}  Kg7 {[%clk 0:00:10]} 50. a4 {[%clk 0:00:03]}  Rc4 {[%clk 0:00:09]} 51. a5 {[%clk 0:00:03]}  Rc5 {[%clk 0:00:09]} 52. Ra2 {[%clk 0:00:04]}  Kg6 {[%clk 0:00:09]} 53. Ra4 {[%clk 0:00:03]}  Rxg5 {[%clk 0:00:09]} 54. Rc4 {[%clk 0:00:02]}  Rxa5 {[%clk 0:00:08]} 55. Rc8 {[%clk 0:00:03]}  Kg7 {[%clk 0:00:09]} 56. g5 {[%clk 0:00:03]}  Ra1 {[%clk 0:00:08]} 57. Ra8 {[%clk 0:00:02]}  a5 {[%clk 0:00:09]} 58. Kg4 {[%clk 0:00:02]}  a4 {[%clk 0:00:09]} 59. Ra7 {[%clk 0:00:02]}  a3 {[%clk 0:00:09]} 60. Kg3 {[%clk 0:00:02]}  a2 {[%clk 0:00:08]} 61. Kg2 {[%clk 0:00:03]}  Kg6 {[%clk 0:00:08]} 62. Ra5 {[%clk 0:00:03]}  Kh5 {[%clk 0:00:07]} 63. Kh3 {[%clk 0:00:03]}  e5 {[%clk 0:00:06]} 64. Kg2 {[%clk 0:00:03]}  Kxg5 {[%clk 0:00:05]} 65. Rxe5+ {[%clk 0:00:03]}  f5 {[%clk 0:00:06]} 66. Ra5 {[%clk 0:00:04]}  Kg4 {[%clk 0:00:06]} 67. Kh2 {[%clk 0:00:04]}  f4 {[%clk 0:00:06]} 68. Ra4 {[%clk 0:00:04]}  Kf5 {[%clk 0:00:06]} 69. Kg2 {[%clk 0:00:03]}  f3+ {[%clk 0:00:05]} 70. Kh2 {[%clk 0:00:01]}  f2 {[%clk 0:00:04]} 0-1


[Site "https://www.chess.com"]

[Event "Titled Tuesday Blitz March 01 Early 2022"]
[White "Bogumil, Tatiana"]
[Black "Mirzanurov, Bulat"]
[WhiteFideId "4110579"]
[BlackFideId "4184521"]
[WhiteElo "1862"]
[BlackElo "2116"]
[Result "1-0"]
[Round "11"]
[TimeControl "180+1"]
[Date "2022.03.01"]
[WhiteClock "0:00:12"]
[BlackClock "0:00:03"]

1. Nf3 {[%clk 0:02:35]}  d5 {[%clk 0:02:58]} 2. c4 {[%clk 0:02:34]}  dxc4 {[%clk 0:02:57]} 3. Na3 {[%clk 0:02:30]}  Nf6 {[%clk 0:02:52]} 4. Nxc4 {[%clk 0:02:28]}  e6 {[%clk 0:02:51]} 5. b3 {[%clk 0:02:28]}  a6 {[%clk 0:02:46]} 6. Bb2 {[%clk 0:02:21]}  Be7 {[%clk 0:02:43]} 7. g3 {[%clk 0:02:20]}  c5 {[%clk 0:02:38]} 8. Bg2 {[%clk 0:02:20]}  O-O {[%clk 0:02:37]} 9. O-O {[%clk 0:02:20]}  b5 {[%clk 0:02:31]} 10. Nfe5 {[%clk 0:02:10]}  Ra7 {[%clk 0:02:29]} 11. Ne3 {[%clk 0:02:00]}  Bb7 {[%clk 0:02:27]} 12. Nf3 {[%clk 0:01:57]}  Nbd7 {[%clk 0:02:22]} 13. d4 {[%clk 0:01:54]}  Ne4 {[%clk 0:02:09]} 14. Ng4 {[%clk 0:01:44]}  h5 {[%clk 0:02:05]} 15. Nge5 {[%clk 0:01:44]}  Nxe5 {[%clk 0:02:02]} 16. dxe5 {[%clk 0:01:42]}  Bd5 {[%clk 0:01:54]} 17. Qc2 {[%clk 0:01:28]}  Rc7 {[%clk 0:01:46]} 18. Rfd1 {[%clk 0:01:24]}  c4 {[%clk 0:01:45]} 19. bxc4 {[%clk 0:01:12]}  Rxc4 {[%clk 0:01:43]} 20. Qd3 {[%clk 0:01:04]}  Qc7 {[%clk 0:01:41]} 21. Nd4 {[%clk 0:01:00]}  Nc5 {[%clk 0:01:31]} 22. Qe3 {[%clk 0:00:55]}  Bxg2 {[%clk 0:01:29]} 23. Kxg2 {[%clk 0:00:52]}  Qb7+ {[%clk 0:01:29]} 24. Nf3 {[%clk 0:00:45]}  Na4 {[%clk 0:01:22]} 25. Bd4 {[%clk 0:00:44]}  Bc5 {[%clk 0:01:19]} 26. Bxc5 {[%clk 0:00:43]}  Nxc5 {[%clk 0:01:19]} 27. Rd4 {[%clk 0:00:38]}  Rxd4 {[%clk 0:01:17]} 28. Qxd4 {[%clk 0:00:38]}  Na4 {[%clk 0:01:07]} 29. Rd1 {[%clk 0:00:33]}  Rc8 {[%clk 0:01:03]} 30. Rd2 {[%clk 0:00:30]}  Nc3 {[%clk 0:01:00]} 31. h4 {[%clk 0:00:27]}  Nd5 {[%clk 0:00:54]} 32. Qb2 {[%clk 0:00:17]}  Rc4 {[%clk 0:00:49]} 33. Kh2 {[%clk 0:00:17]}  g6 {[%clk 0:00:48]} 34. Ng5 {[%clk 0:00:16]}  Qc6 {[%clk 0:00:43]} 35. Qa3 {[%clk 0:00:15]}  Rc1 {[%clk 0:00:39]} 36. Qf3 {[%clk 0:00:13]}  Qc7 {[%clk 0:00:28]} 37. Ne4 {[%clk 0:00:13]}  Rc6 {[%clk 0:00:19]} 38. Nd6 {[%clk 0:00:13]}  Kg7 {[%clk 0:00:16]} 39. e4 {[%clk 0:00:13]}  Nb6 {[%clk 0:00:13]} 40. Qf6+ {[%clk 0:00:13]}  Kg8 {[%clk 0:00:13]} 41. Ne8 {[%clk 0:00:12]}  Qc8 {[%clk 0:00:03]} 42. Qg7# {[%clk 0:00:12]} 1-0


[Site "https://www.chess.com"]

[Event "Titled Tuesday Blitz March 01 Early 2022"]
[White "Budrewicz, Krzysztof"]
[Black "Horak, Martin"]
[WhiteFideId "1127950"]
[BlackFideId "367095"]
[WhiteElo "2248"]
[BlackElo "1997"]
[Result "1-0"]
[Round "11"]
[TimeControl "180+1"]
[Date "2022.03.01"]
[WhiteClock "0:02:27"]
[BlackClock "0:00:19"]

1. d4 {[%clk 0:03:00]}  Nf6 {[%clk 0:02:59]} 2. c4 {[%clk 0:03:00]}  e6 {[%clk 0:03:00]} 3. Nf3 {[%clk 0:03:01]}  b6 {[%clk 0:03:00]} 4. g3 {[%clk 0:03:00]}  Ba6 {[%clk 0:03:00]} 5. Qc2 {[%clk 0:03:00]}  Bb7 {[%clk 0:02:56]} 6. Bg2 {[%clk 0:03:00]}  c5 {[%clk 0:02:57]} 7. dxc5 {[%clk 0:03:00]}  bxc5 {[%clk 0:02:56]} 8. Nc3 {[%clk 0:03:00]}  Be7 {[%clk 0:02:55]} 9. O-O {[%clk 0:03:00]}  O-O {[%clk 0:02:55]} 10. Rd1 {[%clk 0:03:01]}  Qb6 {[%clk 0:02:55]} 11. Bf4 {[%clk 0:03:00]}  Rd8 {[%clk 0:02:40]} 12. Rac1 {[%clk 0:02:57]}  Nc6 {[%clk 0:02:34]} 13. Rd2 {[%clk 0:02:50]}  d6 {[%clk 0:02:01]} 14. Rcd1 {[%clk 0:02:48]}  e5 {[%clk 0:01:32]} 15. Bg5 {[%clk 0:02:48]}  Nd4 {[%clk 0:01:25]} 16. Qb1 {[%clk 0:02:40]}  h6 {[%clk 0:01:03]} 17. Bxf6 {[%clk 0:02:39]}  Bxf6 {[%clk 0:01:04]} 18. Ne1 {[%clk 0:02:35]}  Bxg2 {[%clk 0:00:37]} 19. Kxg2 {[%clk 0:02:35]}  g6 {[%clk 0:00:29]} 20. e3 {[%clk 0:02:34]}  Nf5 {[%clk 0:00:20]} 21. Nd5 {[%clk 0:02:31]}  Qb7 {[%clk 0:00:19]} 22. Qe4 {[%clk 0:02:27]} 1-0


[Site "https://www.chess.com"]

[Event "Titled Tuesday Blitz March 01 Early 2022"]
[White "Clawitter, Craig"]
[Black "Pasti, Aron"]
[WhiteFideId "2023105"]
[BlackFideId "785857"]
[WhiteElo "2201"]
[BlackElo "2080"]
[Result "1-0"]
[Round "11"]
[TimeControl "180+1"]
[Date "2022.03.01"]
[WhiteClock "0:00:15"]
[BlackClock "0:00:17"]

1. e4 {[%clk 0:03:00]}  e5 {[%clk 0:02:57]} 2. Nf3 {[%clk 0:03:00]}  Nc6 {[%clk 0:02:55]} 3. Bb5 {[%clk 0:03:00]}  a6 {[%clk 0:02:54]} 4. Ba4 {[%clk 0:03:00]}  Nf6 {[%clk 0:02:52]} 5. O-O {[%clk 0:02:58]}  Be7 {[%clk 0:02:51]} 6. d3 {[%clk 0:02:58]}  b5 {[%clk 0:02:49]} 7. Bb3 {[%clk 0:02:58]}  d6 {[%clk 0:02:50]} 8. a4 {[%clk 0:02:56]}  O-O {[%clk 0:02:48]} 9. axb5 {[%clk 0:02:56]}  Nd4 {[%clk 0:02:37]} 10. Nxd4 {[%clk 0:02:52]}  exd4 {[%clk 0:02:38]} 11. bxa6 {[%clk 0:02:43]}  Bxa6 {[%clk 0:02:35]} 12. Nd2 {[%clk 0:02:40]}  Bb7 {[%clk 0:02:27]} 13. Rxa8 {[%clk 0:02:38]}  Qxa8 {[%clk 0:02:28]} 14. f4 {[%clk 0:02:10]}  c5 {[%clk 0:02:08]} 15. Nf3 {[%clk 0:01:39]}  Nd7 {[%clk 0:01:36]} 16. Qe1 {[%clk 0:01:28]}  Nb6 {[%clk 0:01:29]} 17. f5 {[%clk 0:01:20]}  d5 {[%clk 0:01:25]} 18. e5 {[%clk 0:01:14]}  c4 {[%clk 0:01:23]} 19. f6 {[%clk 0:01:14]}  gxf6 {[%clk 0:01:17]} 20. exf6 {[%clk 0:01:12]}  Bxf6 {[%clk 0:01:17]} 21. Ne5 {[%clk 0:00:54]}  cxb3 {[%clk 0:01:13]} 22. Rxf6 {[%clk 0:00:53]}  Qe8 {[%clk 0:01:01]} 23. Bh6 {[%clk 0:00:40]}  Kh8 {[%clk 0:00:40]} 24. Bxf8 {[%clk 0:00:39]}  Qxf8 {[%clk 0:00:39]} 25. Nxf7+ {[%clk 0:00:26]}  Kg7 {[%clk 0:00:38]} 26. Rxb6 {[%clk 0:00:12]}  Qxf7 {[%clk 0:00:36]} 27. Qg3+ {[%clk 0:00:11]}  Kf8 {[%clk 0:00:31]} 28. Qb8+ {[%clk 0:00:11]}  Qe8 {[%clk 0:00:15]} 29. Qxe8+ {[%clk 0:00:11]}  Kxe8 {[%clk 0:00:15]} 30. Rxb7 {[%clk 0:00:12]}  bxc2 {[%clk 0:00:15]} 31. Rc7 {[%clk 0:00:12]}  Kd8 {[%clk 0:00:14]} 32. Rxc2 {[%clk 0:00:12]}  Kd7 {[%clk 0:00:15]} 33. Kf2 {[%clk 0:00:12]}  Kd6 {[%clk 0:00:16]} 34. Kf3 {[%clk 0:00:13]}  h5 {[%clk 0:00:15]} 35. Kf4 {[%clk 0:00:13]}  Ke6 {[%clk 0:00:15]} 36. Kg5 {[%clk 0:00:14]}  Ke5 {[%clk 0:00:15]} 37. Kxh5 {[%clk 0:00:14]}  Kf4 {[%clk 0:00:15]} 38. Re2 {[%clk 0:00:14]}  Kf5 {[%clk 0:00:13]} 39. b4 {[%clk 0:00:14]}  Kf6 {[%clk 0:00:14]} 40. b5 {[%clk 0:00:15]}  Kf5 {[%clk 0:00:14]} 41. b6 {[%clk 0:00:15]}  Kf6 {[%clk 0:00:15]} 42. b7 {[%clk 0:00:15]}  Kf5 {[%clk 0:00:16]} 43. b8=Q {[%clk 0:00:15]}  Kf6 {[%clk 0:00:17]} 44. Qf8# {[%clk 0:00:15]} 1-0


[Site "https://www.chess.com"]

[Event "Titled Tuesday Blitz March 01 Early 2022"]
[White "Demchenko, Anton"]
[Black "Gelman, Alexander"]
[WhiteFideId "4160258"]
[BlackFideId "4118316"]
[WhiteElo "2539"]
[BlackElo "2375"]
[Result "1-0"]
[Round "11"]
[TimeControl "180+1"]
[Date "2022.03.01"]
[WhiteClock "0:00:07"]
[BlackClock "0:00:06"]

1. e4 {[%clk 0:03:00]}  b6 {[%clk 0:02:58]} 2. d4 {[%clk 0:03:00]}  Bb7 {[%clk 0:02:59]} 3. Bd3 {[%clk 0:03:00]}  Nf6 {[%clk 0:02:59]} 4. Qe2 {[%clk 0:03:00]}  e6 {[%clk 0:02:58]} 5. Nf3 {[%clk 0:02:53]}  d5 {[%clk 0:02:57]} 6. Nbd2 {[%clk 0:02:48]}  c5 {[%clk 0:02:53]} 7. e5 {[%clk 0:02:42]}  Nfd7 {[%clk 0:02:53]} 8. c3 {[%clk 0:02:42]}  Nc6 {[%clk 0:02:52]} 9. a3 {[%clk 0:02:42]}  g5 {[%clk 0:02:51]} 10. h3 {[%clk 0:02:40]}  h5 {[%clk 0:02:45]} 11. Nf1 {[%clk 0:02:27]}  Rg8 {[%clk 0:02:31]} 12. g4 {[%clk 0:02:23]}  h4 {[%clk 0:02:25]} 13. Be3 {[%clk 0:02:11]}  Be7 {[%clk 0:02:25]} 14. N1d2 {[%clk 0:02:07]}  Qc7 {[%clk 0:02:25]} 15. O-O {[%clk 0:01:59]}  O-O-O {[%clk 0:02:25]} 16. Bb5 {[%clk 0:01:45]}  f6 {[%clk 0:02:07]} 17. exf6 {[%clk 0:01:45]}  Bxf6 {[%clk 0:02:05]} 18. Ba6 {[%clk 0:01:46]}  e5 {[%clk 0:01:53]} 19. Bxb7+ {[%clk 0:01:45]}  Kxb7 {[%clk 0:01:53]} 20. dxe5 {[%clk 0:01:29]}  Ndxe5 {[%clk 0:01:51]} 21. Nxe5 {[%clk 0:01:30]}  Bxe5 {[%clk 0:01:33]} 22. Nf3 {[%clk 0:01:22]}  Rge8 {[%clk 0:01:13]} 23. Qd2 {[%clk 0:01:05]}  d4 {[%clk 0:01:04]} 24. Bxg5 {[%clk 0:01:05]}  dxc3 {[%clk 0:01:02]} 25. Bxd8 {[%clk 0:01:05]}  Rxd8 {[%clk 0:01:03]} 26. Qe3 {[%clk 0:01:03]}  cxb2 {[%clk 0:01:03]} 27. Rab1 {[%clk 0:01:03]}  Bh8 {[%clk 0:00:53]} 28. Nxh4 {[%clk 0:00:58]}  Nd4 {[%clk 0:00:45]} 29. Rxb2 {[%clk 0:00:23]}  Qh7 {[%clk 0:00:32]} 30. Ng2 {[%clk 0:00:20]}  Rf8 {[%clk 0:00:21]} 31. f4 {[%clk 0:00:20]}  Kb8 {[%clk 0:00:18]} 32. Rd2 {[%clk 0:00:16]}  Qb7 {[%clk 0:00:16]} 33. Kh2 {[%clk 0:00:15]}  Bg7 {[%clk 0:00:15]} 34. Rd3 {[%clk 0:00:14]}  Rh8 {[%clk 0:00:15]} 35. Qg3 {[%clk 0:00:12]}  Bf6 {[%clk 0:00:15]} 36. Re3 {[%clk 0:00:12]}  Bd8 {[%clk 0:00:14]} 37. Rfe1 {[%clk 0:00:11]}  Bc7 {[%clk 0:00:15]} 38. h4 {[%clk 0:00:10]}  a5 {[%clk 0:00:14]} 39. h5 {[%clk 0:00:10]}  Qd5 {[%clk 0:00:13]} 40. Re8+ {[%clk 0:00:11]}  Rxe8 {[%clk 0:00:13]} 41. Rxe8+ {[%clk 0:00:12]}  Ka7 {[%clk 0:00:13]} 42. Re3 {[%clk 0:00:11]}  c4 {[%clk 0:00:10]} 43. h6 {[%clk 0:00:10]}  c3 {[%clk 0:00:10]} 44. Rxc3 {[%clk 0:00:09]}  Ne2 {[%clk 0:00:10]} 45. Rxc7+ {[%clk 0:00:09]}  Ka6 {[%clk 0:00:10]} 46. Qe3 {[%clk 0:00:08]}  Nd4 {[%clk 0:00:06]} 47. Re7 {[%clk 0:00:07]} 1-0


[Site "https://www.chess.com"]